[Event "Late-Titled-Tuesday-Blitz-October-17-2023"]
[Site "Chess.com"]
[Date "2023.10.17"]
[Round "4"]
[White "stasOR4ik"]
[Black "jaskol95"]
[Result "1/2-1/2"]
[WhiteElo "2447"]
[BlackElo "2585"]
[TimeControl "180+1"]
[EndTime "14:40:25 PDT"]
[Termination "Game drawn - insufficient material"]

1. c4 {[%clk 0:02:45.4]} 1... g6 {[%clk 0:02:58.3]} 2. Nc3 {[%clk 0:02:45.9]}
2... Bg7 {[%clk 0:02:58.8]} 3. g3 {[%clk 0:02:46.7]} 3... Nf6 {[%clk 0:02:57]}
4. Bg2 {[%clk 0:02:47.2]} 4... c6 {[%clk 0:02:57.3]} 5. e4 {[%clk 0:02:47.7]}
5... d6 {[%clk 0:02:55]} 6. Nge2 {[%clk 0:02:47.9]} 6... O-O {[%clk 0:02:55.4]}
7. O-O {[%clk 0:02:48.5]} 7... Nbd7 {[%clk 0:02:54.9]} 8. b4 {[%clk 0:02:48.8]}
8... a5 {[%clk 0:02:53.6]} 9. b5 {[%clk 0:02:48.7]} 9... Qc7 {[%clk 0:02:45.8]}
10. Bb2 {[%clk 0:02:44.8]} 10... e5 {[%clk 0:02:43.9]} 11. h3 {[%clk 0:02:33.9]}
11... Nb6 {[%clk 0:02:29]} 12. d3 {[%clk 0:02:32]} 12... Be6 {[%clk 0:02:01.2]}
13. a4 {[%clk 0:02:31.2]} 13... d5 {[%clk 0:02:01.2]} 14. c5 {[%clk 0:02:11.5]}
14... Nbd7 {[%clk 0:01:59.5]} 15. b6 {[%clk 0:02:02.2]} 15... Qd8 {[%clk
0:01:58.1]} 16. exd5 {[%clk 0:01:39.8]} 16... Nxd5 {[%clk 0:01:48]} 17. Nxd5
{[%clk 0:01:37.7]} 17... Bxd5 {[%clk 0:01:43.8]} 18. Bxd5 {[%clk 0:01:36.6]}
18... cxd5 {[%clk 0:01:44.3]} 19. d4 {[%clk 0:01:30.5]} 19... Qe7 {[%clk
0:01:34.7]} 20. Rc1 {[%clk 0:01:14.5]} 20... exd4 {[%clk 0:01:29.6]} 21. Bxd4
{[%clk 0:00:52]} 21... Bxd4 {[%clk 0:01:28.4]} 22. Nxd4 {[%clk 0:00:49.6]} 22...
Nxc5 {[%clk 0:01:21]} 23. Re1 {[%clk 0:00:49.1]} 23... Qd6 {[%clk 0:01:21]} 24.
Nb5 {[%clk 0:00:43.5]} 24... Qxb6 {[%clk 0:01:20.3]} 25. Qd4 {[%clk 0:00:34.3]}
25... Rac8 {[%clk 0:01:16.5]} 26. Re7 {[%clk 0:00:28.4]} 26... Qd8 {[%clk
0:01:00.8]} 27. Rce1 {[%clk 0:00:20.4]} 27... Ne6 {[%clk 0:00:51.1]} 28. Qf6
{[%clk 0:00:18.1]} 28... Ng7 {[%clk 0:00:32.6]} 29. Qd4 {[%clk 0:00:14]} 29...
Nf5 {[%clk 0:00:29.1]} 30. Qf6 {[%clk 0:00:13]} 30... Nxe7 {[%clk 0:00:29.3]}
31. Rxe7 {[%clk 0:00:13.7]} 31... Rc6 {[%clk 0:00:28.4]} 32. Qe5 {[%clk
0:00:12.7]} 32... d4 {[%clk 0:00:13.7]} 33. Nxd4 {[%clk 0:00:11.6]} 33... Rd6
{[%clk 0:00:14.2]} 34. Nf3 {[%clk 0:00:07.4]} 34... Rd5 {[%clk 0:00:13.9]} 35.
Qe3 {[%clk 0:00:07.1]} 35... Rf5 {[%clk 0:00:13.8]} 36. Nd4 {[%clk 0:00:05.8]}
36... Rd5 {[%clk 0:00:12.9]} 37. Nf3 {[%clk 0:00:05.5]} 37... Rd1+ {[%clk
0:00:13.1]} 38. Kg2 {[%clk 0:00:05.5]} 38... Rd3 {[%clk 0:00:13.6]} 39. Qe4
{[%clk 0:00:05.7]} 39... Qd5 {[%clk 0:00:13.7]} 40. Qf4 {[%clk 0:00:06]} 40...
b6 {[%clk 0:00:09.3]} 41. Re5 {[%clk 0:00:06.1]} 41... Qc6 {[%clk 0:00:09.4]}
42. h4 {[%clk 0:00:05.2]} 42... Rfd8 {[%clk 0:00:08.1]} 43. h5 {[%clk
0:00:05.2]} 43... Rxf3 {[%clk 0:00:05.4]} 44. Qxf3 {[%clk 0:00:04.8]} 44...
Qxf3+ {[%clk 0:00:05.9]} 45. Kxf3 {[%clk 0:00:05.6]} 45... Rd4 {[%clk
0:00:06.3]} 46. hxg6 {[%clk 0:00:04.8]} 46... hxg6 {[%clk 0:00:06.3]} 47. Rb5
{[%clk 0:00:05.5]} 47... Rxa4 {[%clk 0:00:06.4]} 48. Rxb6 {[%clk 0:00:06.2]}
48... Kg7 {[%clk 0:00:07.1]} 49. Ra6 {[%clk 0:00:06.3]} 49... Ra2 {[%clk
0:00:07.5]} 50. Kg2 {[%clk 0:00:06.2]} 50... a4 {[%clk 0:00:08]} 51. Kf3 {[%clk
0:00:06.6]} 51... a3 {[%clk 0:00:08.4]} 52. Ke3 {[%clk 0:00:07.3]} 52... Kf8
{[%clk 0:00:08.9]} 53. Ra7 {[%clk 0:00:07]} 53... Ke8 {[%clk 0:00:08.5]} 54. Kf3
{[%clk 0:00:07.2]} 54... Ra1 {[%clk 0:00:08.8]} 55. Kf4 {[%clk 0:00:07]} 55...
Kf8 {[%clk 0:00:08.2]} 56. Kg5 {[%clk 0:00:07.2]} 56... Ke8 {[%clk 0:00:07.4]}
57. f4 {[%clk 0:00:06.9]} 57... a2 {[%clk 0:00:07.5]} 58. g4 {[%clk 0:00:06.5]}
58... Kd8 {[%clk 0:00:07.3]} 59. Kf6 {[%clk 0:00:06.5]} 59... Rf1 {[%clk
0:00:04.7]} 60. Rxa2 {[%clk 0:00:04.8]} 60... Rxf4+ {[%clk 0:00:05.3]} 61. Kg5
{[%clk 0:00:05]} 61... Rf1 {[%clk 0:00:05.6]} 62. Ra7 {[%clk 0:00:04.9]} 62...
Ke8 {[%clk 0:00:06]} 63. Rb7 {[%clk 0:00:05.1]} 63... Kf8 {[%clk 0:00:06.5]} 64.
Kh6 {[%clk 0:00:04.9]} 64... Ke8 {[%clk 0:00:05]} 65. Kg7 {[%clk 0:00:04.8]}
65... Rf4 {[%clk 0:00:04.4]} 66. g5 {[%clk 0:00:05.1]} 66... Rf5 {[%clk
0:00:04.9]} 67. Ra7 {[%clk 0:00:04.2]} 67... Rxg5 {[%clk 0:00:03.5]} 68. Rxf7
{[%clk 0:00:04.5]} 68... Rg1 {[%clk 0:00:03.8]} 69. Ra7 {[%clk 0:00:03.8]} 69...
g5 {[%clk 0:00:04.1]} 70. Kf6 {[%clk 0:00:04.4]} 70... g4 {[%clk 0:00:04.7]} 71.
Kf5 {[%clk 0:00:04.8]} 71... g3 {[%clk 0:00:05]} 72. Rg7 {[%clk 0:00:05]} 72...
Rf1+ {[%clk 0:00:02.4]} 73. Ke4 {[%clk 0:00:04.6]} 73... Rg1 {[%clk 0:00:02.4]}
74. Kf3 {[%clk 0:00:04.4]} 74... Rf1+ {[%clk 0:00:03]} 75. Ke2 {[%clk
0:00:03.8]} 75... Rg1 {[%clk 0:00:02.5]} 76. Kf3 {[%clk 0:00:04.2]} 76... Kf8
{[%clk 0:00:02.9]} 77. Rxg3 {[%clk 0:00:04]} 77... Rf1+ {[%clk 0:00:03.7]} 78.
Ke2 {[%clk 0:00:04.2]} 78... Rf6 {[%clk 0:00:03.9]} 79. Rf3 {[%clk 0:00:05.1]}
79... Rxf3 {[%clk 0:00:04.1]} 80. Kxf3 {[%clk 0:00:06]} 1/2-1/2

[Event "Late-Titled-Tuesday-Blitz-October-17-2023"]
[Site "Chess.com"]
[Date "2023.10.17"]
[Round "4"]
[White "GiorgianBarbosa"]
[Black "Alphafischer2019"]
[Result "1-0"]
[WhiteElo "2384"]
[BlackElo "2581"]
[TimeControl "180+1"]
[EndTime "14:40:26 PDT"]
[Termination "GiorgianBarbosa won by checkmate"]

1. d4 {[%clk 0:03:00.7]} 1... Nf6 {[%clk 0:02:58.5]} 2. Nf3 {[%clk 0:03:01.6]}
2... b5 {[%clk 0:02:58.6]} 3. g3 {[%clk 0:02:55.3]} 3... Bb7 {[%clk 0:02:57.8]}
4. Bg2 {[%clk 0:02:56.2]} 4... e6 {[%clk 0:02:57.5]} 5. O-O {[%clk 0:02:56.7]}
5... Be7 {[%clk 0:02:56.3]} 6. c3 {[%clk 0:02:57.6]} 6... a6 {[%clk 0:02:54.5]}
7. Bg5 {[%clk 0:02:57.9]} 7... O-O {[%clk 0:02:52.5]} 8. Nbd2 {[%clk 0:02:58.1]}
8... c5 {[%clk 0:02:52]} 9. a4 {[%clk 0:02:31.9]} 9... cxd4 {[%clk 0:02:46.7]}
10. cxd4 {[%clk 0:02:28]} 10... d6 {[%clk 0:02:46.3]} 11. Qb3 {[%clk 0:02:21.4]}
11... Bd5 {[%clk 0:02:42.9]} 12. Qc2 {[%clk 0:02:18.1]} 12... Nbd7 {[%clk
0:02:38.9]} 13. e4 {[%clk 0:02:11.2]} 13... Bb7 {[%clk 0:02:35.6]} 14. axb5
{[%clk 0:02:06.5]} 14... axb5 {[%clk 0:02:35.5]} 15. Qd3 {[%clk 0:02:07.4]}
15... Qb6 {[%clk 0:02:30.9]} 16. e5 {[%clk 0:01:53]} 16... dxe5 {[%clk
0:02:05.9]} 17. dxe5 {[%clk 0:01:53.9]} 17... Nc5 {[%clk 0:02:06.3]} 18. Qd4
{[%clk 0:01:31.5]} 18... Nd5 {[%clk 0:01:56.8]} 19. Bxe7 {[%clk 0:01:28.4]}
19... Nxe7 {[%clk 0:01:57.7]} 20. b4 {[%clk 0:01:25.8]} 20... Na4 {[%clk
0:01:49.6]} 21. Rxa4 {[%clk 0:01:07.1]} 21... Qxd4 {[%clk 0:01:42.4]} 22. Nxd4
{[%clk 0:01:08]} 22... Rxa4 {[%clk 0:00:59.6]} 23. Bxb7 {[%clk 0:01:04.5]} 23...
Rd8 {[%clk 0:01:00.3]} 24. N4f3 {[%clk 0:00:50.2]} 24... Rxb4 {[%clk 0:00:58.3]}
25. Ne4 {[%clk 0:00:47.3]} 25... Nf5 {[%clk 0:00:48.6]} 26. Rc1 {[%clk
0:00:37.7]} 26... h6 {[%clk 0:00:41.9]} 27. h3 {[%clk 0:00:20.7]} 27... Rb3
{[%clk 0:00:41.2]} 28. Kg2 {[%clk 0:00:17]} 28... b4 {[%clk 0:00:39.9]} 29. g4
{[%clk 0:00:16.5]} 29... Ne7 {[%clk 0:00:37.7]} 30. Nd6 {[%clk 0:00:14.8]} 30...
Rc3 {[%clk 0:00:34]} 31. Rb1 {[%clk 0:00:12]} 31... b3 {[%clk 0:00:22.9]} 32.
Nd4 {[%clk 0:00:11.2]} 32... f6 {[%clk 0:00:15.5]} 33. Nxe6 {[%clk 0:00:10.2]}
33... Rb8 {[%clk 0:00:16]} 34. Be4 {[%clk 0:00:06.7]} 34... fxe5 {[%clk
0:00:15.2]} 35. Nf5 {[%clk 0:00:05.1]} 35... Nxf5 {[%clk 0:00:14.9]} 36. Bxf5
{[%clk 0:00:06]} 36... b2 {[%clk 0:00:15.5]} 37. Rd1 {[%clk 0:00:01.3]} 37...
Rc1 {[%clk 0:00:14.9]} 38. Rd7 {[%clk 0:00:02.2]} 38... b1=Q {[%clk 0:00:03.8]}
39. Rxg7+ {[%clk 0:00:03.1]} 39... Kh8 {[%clk 0:00:04.2]} 40. Bxb1 {[%clk
0:00:04]} 40... Rcxb1 {[%clk 0:00:03.7]} 41. Rg6 {[%clk 0:00:04.6]} 41... Kh7
{[%clk 0:00:03.3]} 42. Rf6 {[%clk 0:00:04.4]} 42... Kh8 {[%clk 0:00:04.2]} 43.
Rxh6+ {[%clk 0:00:04.3]} 43... Kg8 {[%clk 0:00:05.1]} 44. Rh5 {[%clk 0:00:03.5]}
44... R1b6 {[%clk 0:00:05.6]} 45. Ng5 {[%clk 0:00:02.6]} 45... Rg6 {[%clk
0:00:05.2]} 46. Ne4 {[%clk 0:00:02.7]} 46... Re8 {[%clk 0:00:05.3]} 47. Rf5
{[%clk 0:00:03]} 47... Kg7 {[%clk 0:00:05]} 48. Kg3 {[%clk 0:00:02.1]} 48...
Rge6 {[%clk 0:00:05.6]} 49. f3 {[%clk 0:00:02.4]} 49... Rf8 {[%clk 0:00:06.2]}
50. h4 {[%clk 0:00:03]} 50... Rxf5 {[%clk 0:00:05.8]} 51. gxf5 {[%clk
0:00:03.9]} 51... Rh6 {[%clk 0:00:06.5]} 52. Kg4 {[%clk 0:00:04]} 52... Kf7
{[%clk 0:00:06]} 53. Ng5+ {[%clk 0:00:03.2]} 53... Ke7 {[%clk 0:00:05.4]} 54.
Ne4 {[%clk 0:00:02.7]} 54... Rh8 {[%clk 0:00:06]} 55. f6+ {[%clk 0:00:02.7]}
55... Ke6 {[%clk 0:00:05.7]} 56. h5 {[%clk 0:00:02.6]} 56... Rg8+ {[%clk
0:00:03.5]} 57. Kh4 {[%clk 0:00:02.9]} 57... Rh8 {[%clk 0:00:04.3]} 58. Kg5
{[%clk 0:00:02.7]} 58... Kf7 {[%clk 0:00:05]} 59. h6 {[%clk 0:00:01.7]} 59...
Rg8+ {[%clk 0:00:05.2]} 60. Kf5 {[%clk 0:00:02.1]} 60... Rh8 {[%clk 0:00:06.1]}
61. h7 {[%clk 0:00:02]} 61... Kf8 {[%clk 0:00:07]} 62. Ng5 {[%clk 0:00:02.4]}
62... Ke8 {[%clk 0:00:06.7]} 63. Kxe5 {[%clk 0:00:02.3]} 63... Kf8 {[%clk
0:00:07.5]} 64. Kf5 {[%clk 0:00:02.9]} 64... Ke8 {[%clk 0:00:08]} 65. Kg6 {[%clk
0:00:03.5]} 65... Kf8 {[%clk 0:00:08.9]} 66. f4 {[%clk 0:00:04]} 66... Rxh7
{[%clk 0:00:09]} 67. Nxh7+ {[%clk 0:00:03.9]} 67... Ke8 {[%clk 0:00:09.8]} 68.
f7+ {[%clk 0:00:04.7]} 68... Kd7 {[%clk 0:00:10.7]} 69. f8=Q {[%clk 0:00:05.6]}
69... Ke6 {[%clk 0:00:11.6]} 70. Qf5+ {[%clk 0:00:05.8]} 70... Ke7 {[%clk
0:00:11.8]} 71. Qe5+ {[%clk 0:00:06.3]} 71... Kd7 {[%clk 0:00:11.5]} 72. Kf7
{[%clk 0:00:06.6]} 72... Kd8 {[%clk 0:00:12.4]} 73. Qd6+ {[%clk 0:00:06.4]}
73... Kc8 {[%clk 0:00:12.7]} 74. Qe7 {[%clk 0:00:06.7]} 74... Kb8 {[%clk
0:00:12.9]} 75. Ke6 {[%clk 0:00:07.6]} 75... Ka8 {[%clk 0:00:13.8]} 76. f5
{[%clk 0:00:08.3]} 76... Kb8 {[%clk 0:00:14.6]} 77. f6 {[%clk 0:00:09.2]} 77...
Ka8 {[%clk 0:00:15.3]} 78. f7 {[%clk 0:00:10.1]} 78... Kb8 {[%clk 0:00:16.2]}
79. f8=Q# {[%clk 0:00:11]} 1-0

[Event "Late-Titled-Tuesday-Blitz-October-17-2023"]
[Site "Chess.com"]
[Date "2023.10.17"]
[Round "4"]
[White "Perecke"]
[Black "SchmakAttack"]
[Result "1/2-1/2"]
[WhiteElo "2524"]
[BlackElo "2737"]
[TimeControl "180+1"]
[EndTime "14:40:34 PDT"]
[Termination "Game drawn - insufficient material"]

1. e4 {[%clk 0:02:59.5]} 1... e5 {[%clk 0:03:00.2]} 2. Nf3 {[%clk 0:02:59.3]}
2... Nc6 {[%clk 0:03:00.9]} 3. Bc4 {[%clk 0:02:56.8]} 3... Nf6 {[%clk
0:03:00.8]} 4. d3 {[%clk 0:02:56.4]} 4... Bc5 {[%clk 0:03:00.3]} 5. Bg5 {[%clk
0:02:55.7]} 5... h6 {[%clk 0:02:57.1]} 6. Bh4 {[%clk 0:02:54.8]} 6... Be7 {[%clk
0:02:54.1]} 7. Bg3 {[%clk 0:02:53.6]} 7... d6 {[%clk 0:02:53.8]} 8. a4 {[%clk
0:02:53]} 8... Nh5 {[%clk 0:02:51.8]} 9. Nxe5 {[%clk 0:02:49.6]} 9... Nxe5
{[%clk 0:02:35.5]} 10. Bxe5 {[%clk 0:02:45.6]} 10... dxe5 {[%clk 0:02:36.4]} 11.
Qxh5 {[%clk 0:02:45.2]} 11... O-O {[%clk 0:02:30.8]} 12. Nc3 {[%clk 0:02:40.6]}
12... Qd6 {[%clk 0:02:22.3]} 13. O-O {[%clk 0:02:34.5]} 13... c6 {[%clk
0:02:22.3]} 14. Ne2 {[%clk 0:02:27]} 14... Kh7 {[%clk 0:02:08.6]} 15. f4 {[%clk
0:02:24.6]} 15... f5 {[%clk 0:01:42.5]} 16. fxe5 {[%clk 0:01:56]} 16... Qxe5
{[%clk 0:01:43.4]} 17. c3 {[%clk 0:01:18.9]} 17... g6 {[%clk 0:01:31.8]} 18. Qf3
{[%clk 0:01:16.2]} 18... Bd7 {[%clk 0:01:25.8]} 19. Ng3 {[%clk 0:01:05.8]} 19...
f4 {[%clk 0:01:05.6]} 20. d4 {[%clk 0:00:48.8]} 20... Qg7 {[%clk 0:01:04]} 21.
Ne2 {[%clk 0:00:48.7]} 21... g5 {[%clk 0:01:03.9]} 22. Qd3 {[%clk 0:00:27.3]}
22... Rad8 {[%clk 0:00:57.4]} 23. e5+ {[%clk 0:00:25.7]} 23... Bf5 {[%clk
0:00:57.4]} 24. Qd2 {[%clk 0:00:26]} 24... Kh8 {[%clk 0:00:57]} 25. Rad1 {[%clk
0:00:23.1]} 25... c5 {[%clk 0:00:47.4]} 26. Bd3 {[%clk 0:00:22.9]} 26... Be6
{[%clk 0:00:41.3]} 27. Be4 {[%clk 0:00:22.9]} 27... cxd4 {[%clk 0:00:39.8]} 28.
cxd4 {[%clk 0:00:22.6]} 28... b6 {[%clk 0:00:37.3]} 29. Nc3 {[%clk 0:00:22.8]}
29... Rxd4 {[%clk 0:00:36.2]} 30. Qe2 {[%clk 0:00:22.3]} 30... Qxe5 {[%clk
0:00:35.3]} 31. Qh5 {[%clk 0:00:17.4]} 31... Qg7 {[%clk 0:00:24.4]} 32. Rxd4
{[%clk 0:00:15.6]} 32... Qxd4+ {[%clk 0:00:25.3]} 33. Kh1 {[%clk 0:00:16.2]}
33... Qg7 {[%clk 0:00:23.3]} 34. Re1 {[%clk 0:00:16.5]} 34... Bf6 {[%clk
0:00:22]} 35. Bc2 {[%clk 0:00:14.6]} 35... Bf7 {[%clk 0:00:19.9]} 36. Qf3 {[%clk
0:00:14]} 36... Rc8 {[%clk 0:00:19.3]} 37. Qb7 {[%clk 0:00:12.8]} 37... Rd8
{[%clk 0:00:13.9]} 38. Qxa7 {[%clk 0:00:12.5]} 38... Bd4 {[%clk 0:00:07.2]} 39.
Qe7 {[%clk 0:00:12.4]} 39... Qf6 {[%clk 0:00:06.1]} 40. Qe4 {[%clk 0:00:11.8]}
40... Qg7 {[%clk 0:00:04.7]} 41. Rd1 {[%clk 0:00:10.9]} 41... Bf6 {[%clk
0:00:04.7]} 42. Rxd8+ {[%clk 0:00:10.7]} 42... Bxd8 {[%clk 0:00:05.6]} 43. h3
{[%clk 0:00:11]} 43... Bf6 {[%clk 0:00:05.2]} 44. Qa8+ {[%clk 0:00:11]} 44...
Bg8 {[%clk 0:00:04.5]} 45. Bb3 {[%clk 0:00:09.5]} 45... Kh7 {[%clk 0:00:03.5]}
46. Bxg8+ {[%clk 0:00:09.4]} 46... Qxg8 {[%clk 0:00:04.4]} 47. Qb7+ {[%clk
0:00:07.8]} 47... Bg7 {[%clk 0:00:04.1]} 48. Qxb6 {[%clk 0:00:05]} 48... Qe8
{[%clk 0:00:04]} 49. Qf2 {[%clk 0:00:03.5]} 49... Qb8 {[%clk 0:00:03.4]} 50.
Qc2+ {[%clk 0:00:04]} 50... Kh8 {[%clk 0:00:03.6]} 51. b3 {[%clk 0:00:04.6]}
51... h5 {[%clk 0:00:03.9]} 52. Ne4 {[%clk 0:00:04.5]} 52... g4 {[%clk
0:00:02.6]} 53. Ng5 {[%clk 0:00:04.6]} 53... Kg8 {[%clk 0:00:02.2]} 54. Qh7+
{[%clk 0:00:04.1]} 54... Kf8 {[%clk 0:00:02.8]} 55. Ne6+ {[%clk 0:00:03.6]}
55... Kf7 {[%clk 0:00:03.4]} 56. Ng5+ {[%clk 0:00:01.9]} 56... Kf6 {[%clk
0:00:02.9]} 57. Ne4+ {[%clk 0:00:02.4]} 57... Kf7 {[%clk 0:00:03.3]} 58. Ng5+
{[%clk 0:00:02.1]} 58... Kf6 {[%clk 0:00:03.7]} 59. Ne4+ {[%clk 0:00:02.8]}
59... Ke5 {[%clk 0:00:03.8]} 60. Qxg7+ {[%clk 0:00:02.6]} 60... Kxe4 {[%clk
0:00:04.3]} 61. Qg6+ {[%clk 0:00:03.1]} 61... Ke3 {[%clk 0:00:04.1]} 62. Qxh5
{[%clk 0:00:03.6]} 62... Qd6 {[%clk 0:00:02]} 63. Qxg4 {[%clk 0:00:03.8]} 63...
Qd2 {[%clk 0:00:01.9]} 64. Qf3+ {[%clk 0:00:03.5]} 64... Kd4 {[%clk 0:00:02.5]}
65. Kh2 {[%clk 0:00:03.6]} 65... Kc5 {[%clk 0:00:02.8]} 66. a5 {[%clk
0:00:03.6]} 66... Kb5 {[%clk 0:00:02.7]} 67. Qa8 {[%clk 0:00:03.6]} 67... Qf2
{[%clk 0:00:02.2]} 68. Qf3 {[%clk 0:00:03.3]} 68... Qd2 {[%clk 0:00:02.7]} 69.
h4 {[%clk 0:00:03.7]} 69... Kxa5 {[%clk 0:00:02.7]} 70. h5 {[%clk 0:00:04.2]}
70... Qd4 {[%clk 0:00:02.7]} 71. h6 {[%clk 0:00:04]} 71... Qf6 {[%clk
0:00:03.3]} 72. Qh3 {[%clk 0:00:04.2]} 72... Qe5 {[%clk 0:00:02.7]} 73. Qg4
{[%clk 0:00:02.5]} 73... f3+ {[%clk 0:00:02.5]} 74. Qg3 {[%clk 0:00:02.6]} 74...
Qh5+ {[%clk 0:00:01.8]} 75. Kg1 {[%clk 0:00:03.1]} 75... Qc5+ {[%clk 0:00:02.2]}
76. Qf2 {[%clk 0:00:03]} 76... Qc1+ {[%clk 0:00:02.8]} 77. Qf1 {[%clk
0:00:02.5]} 77... Qe3+ {[%clk 0:00:03.4]} 78. Kh1 {[%clk 0:00:02.2]} 78... Qxh6+
{[%clk 0:00:03.9]} 79. Kg1 {[%clk 0:00:02.7]} 79... Qe3+ {[%clk 0:00:04.4]} 80.
Qf2 {[%clk 0:00:03.2]} 80... Qxf2+ {[%clk 0:00:04.7]} 81. Kxf2 {[%clk
0:00:03.6]} 81... fxg2 {[%clk 0:00:05.6]} 82. Kxg2 {[%clk 0:00:04.1]} 82... Kb4
{[%clk 0:00:06.4]} 83. Kg1 {[%clk 0:00:04.4]} 83... Kxb3 {[%clk 0:00:07.3]}
1/2-1/2

[Event "Late-Titled-Tuesday-Blitz-October-17-2023"]
[Site "Chess.com"]
[Date "2023.10.17"]
[Round "4"]
[White "Jospem"]
[Black "MikaelyanArman"]
[Result "1/2-1/2"]
[WhiteElo "3132"]
[BlackElo "2886"]
[TimeControl "180+1"]
[EndTime "14:40:39 PDT"]
[Termination "Game drawn by repetition"]

1. e4 {[%clk 0:03:00.9]} 1... e5 {[%clk 0:02:58.1]} 2. Nf3 {[%clk 0:03:00.7]}
2... Nc6 {[%clk 0:02:58.7]} 3. Bb5 {[%clk 0:03:01.1]} 3... a6 {[%clk 0:02:59.3]}
4. Ba4 {[%clk 0:03:01.7]} 4... Nf6 {[%clk 0:02:59.9]} 5. d3 {[%clk 0:03:02.4]}
5... b5 {[%clk 0:02:59.6]} 6. Bb3 {[%clk 0:03:03.1]} 6... Be7 {[%clk 0:03:00.3]}
7. c3 {[%clk 0:03:02.2]} 7... d6 {[%clk 0:03:00.4]} 8. Nbd2 {[%clk 0:03:02.3]}
8... O-O {[%clk 0:03:00.5]} 9. h3 {[%clk 0:03:01.9]} 9... Na5 {[%clk 0:02:54.7]}
10. Bc2 {[%clk 0:03:01.5]} 10... c5 {[%clk 0:02:55.3]} 11. O-O {[%clk
0:03:02.1]} 11... Nc6 {[%clk 0:02:54.7]} 12. Re1 {[%clk 0:03:02.5]} 12... Re8
{[%clk 0:02:49.3]} 13. Nf1 {[%clk 0:03:02.3]} 13... Bf8 {[%clk 0:02:42.8]} 14.
Bg5 {[%clk 0:02:55.7]} 14... h6 {[%clk 0:02:43.1]} 15. Bxf6 {[%clk 0:02:55.8]}
15... Qxf6 {[%clk 0:02:44]} 16. Ne3 {[%clk 0:02:56]} 16... Qd8 {[%clk
0:02:23.4]} 17. a4 {[%clk 0:02:55.3]} 17... Be6 {[%clk 0:02:18.9]} 18. Bb3
{[%clk 0:02:55.2]} 18... Qd7 {[%clk 0:02:12.5]} 19. Bd5 {[%clk 0:02:52.9]} 19...
Rab8 {[%clk 0:01:59.6]} 20. axb5 {[%clk 0:02:49.5]} 20... axb5 {[%clk
0:02:00.5]} 21. Ra6 {[%clk 0:02:48.5]} 21... Bxd5 {[%clk 0:02:00.7]} 22. Nxd5
{[%clk 0:02:46.9]} 22... Ne7 {[%clk 0:01:57.8]} 23. Ne3 {[%clk 0:02:36.7]} 23...
Ra8 {[%clk 0:01:55.3]} 24. Qa1 {[%clk 0:02:36.2]} 24... Qb7 {[%clk 0:01:54.6]}
25. Ra2 {[%clk 0:02:34.6]} 25... g6 {[%clk 0:01:41.3]} 26. Ra3 {[%clk
0:02:11.8]} 26... h5 {[%clk 0:01:35]} 27. g4 {[%clk 0:02:09.1]} 27... hxg4
{[%clk 0:01:01.2]} 28. hxg4 {[%clk 0:02:10]} 28... c4 {[%clk 0:01:01.8]} 29.
Rxa8 {[%clk 0:02:03.2]} 29... Rxa8 {[%clk 0:01:02.7]} 30. Qb1 {[%clk 0:02:02.3]}
30... d5 {[%clk 0:00:47.6]} 31. dxc4 {[%clk 0:01:47.5]} 31... dxe4 {[%clk
0:00:41.9]} 32. Ng5 {[%clk 0:01:40.1]} 32... Bh6 {[%clk 0:00:35.9]} 33. Qxe4
{[%clk 0:01:38.3]} 33... Qxe4 {[%clk 0:00:32.9]} 34. Nxe4 {[%clk 0:01:39.2]}
34... Bxe3 {[%clk 0:00:33.4]} 35. Rxe3 {[%clk 0:01:36.9]} 35... bxc4 {[%clk
0:00:33.9]} 36. Nd6 {[%clk 0:01:37.1]} 36... f6 {[%clk 0:00:22.8]} 37. Nxc4
{[%clk 0:01:35.3]} 37... Nd5 {[%clk 0:00:23.5]} 38. Re1 {[%clk 0:01:28.5]} 38...
Ra4 {[%clk 0:00:23.1]} 39. Rd1 {[%clk 0:00:49.2]} 39... Rxc4 {[%clk 0:00:22]}
40. Rxd5 {[%clk 0:00:49.2]} 40... Rxg4+ {[%clk 0:00:22.6]} 41. Kf1 {[%clk
0:00:49.8]} 41... Kf7 {[%clk 0:00:23.3]} 42. Rd6 {[%clk 0:00:49.1]} 42... Ra4
{[%clk 0:00:21.8]} 43. b4 {[%clk 0:00:48.4]} 43... Ke7 {[%clk 0:00:19.7]} 44.
Rc6 {[%clk 0:00:48.6]} 44... g5 {[%clk 0:00:17.5]} 45. b5 {[%clk 0:00:48.9]}
45... e4 {[%clk 0:00:10.9]} 46. Kg2 {[%clk 0:00:49]} 46... f5 {[%clk 0:00:10.9]}
47. b6 {[%clk 0:00:48.8]} 47... Ra3 {[%clk 0:00:07.7]} 48. Rc5 {[%clk
0:00:49.5]} 48... f4 {[%clk 0:00:05.7]} 49. Rb5 {[%clk 0:00:46.1]} 49... Ra8
{[%clk 0:00:05.6]} 50. Rxg5 {[%clk 0:00:45.9]} 50... Kd6 {[%clk 0:00:05.4]} 51.
Rf5 {[%clk 0:00:44.9]} 51... Rg8+ {[%clk 0:00:04.5]} 52. Kf1 {[%clk 0:00:41.5]}
52... f3 {[%clk 0:00:05.4]} 53. c4 {[%clk 0:00:29.4]} 53... Kc6 {[%clk
0:00:05.3]} 54. c5 {[%clk 0:00:28]} 54... Ra8 {[%clk 0:00:05.5]} 55. Kg1 {[%clk
0:00:28.6]} 55... Rg8+ {[%clk 0:00:05.3]} 56. Kf1 {[%clk 0:00:26.1]} 56... Ra8
{[%clk 0:00:05.6]} 57. Ke1 {[%clk 0:00:22.5]} 57... Ra2 {[%clk 0:00:05.6]} 58.
Rf8 {[%clk 0:00:18]} 58... Re2+ {[%clk 0:00:04.7]} 59. Kf1 {[%clk 0:00:18.6]}
59... Rb2 {[%clk 0:00:05.1]} 60. Rc8+ {[%clk 0:00:17.2]} 60... Kd5 {[%clk
0:00:05.1]} 61. Kg1 {[%clk 0:00:17.2]} 61... Rb1+ {[%clk 0:00:05.5]} 62. Kh2
{[%clk 0:00:17.6]} 62... e3 {[%clk 0:00:06.4]} 63. b7 {[%clk 0:00:08.7]} 63...
exf2 {[%clk 0:00:05]} 64. Rd8+ {[%clk 0:00:09]} 64... Kxc5 {[%clk 0:00:04.9]}
65. Rd1 {[%clk 0:00:09.9]} 65... Rxd1 {[%clk 0:00:04.8]} 66. b8=Q {[%clk
0:00:10.5]} 66... Rh1+ {[%clk 0:00:04.7]} 67. Kg3 {[%clk 0:00:09.4]} 67... f1=Q
{[%clk 0:00:05.6]} 68. Qe5+ {[%clk 0:00:08.3]} 68... Kb4 {[%clk 0:00:06]} 69.
Qb2+ {[%clk 0:00:07.8]} 69... Kc4 {[%clk 0:00:06.1]} 70. Qc2+ {[%clk 0:00:08.2]}
70... Kd4 {[%clk 0:00:06.7]} 71. Qb2+ {[%clk 0:00:08.8]} 71... Kd3 {[%clk
0:00:06.7]} 72. Qb3+ {[%clk 0:00:07.9]} 72... Kd4 {[%clk 0:00:06.5]} 73. Qb2+
{[%clk 0:00:07.8]} 73... Kc5 {[%clk 0:00:07]} 74. Qe5+ {[%clk 0:00:08]} 74...
Kb6 {[%clk 0:00:06.9]} 75. Qd6+ {[%clk 0:00:08.1]} 75... Kb5 {[%clk 0:00:07.5]}
76. Qd5+ {[%clk 0:00:08.1]} 76... Kb4 {[%clk 0:00:08]} 77. Qd6+ {[%clk
0:00:08.7]} 77... Kb3 {[%clk 0:00:07.9]} 78. Qb6+ {[%clk 0:00:06.3]} 78... Kc3
{[%clk 0:00:07.2]} 79. Qa5+ {[%clk 0:00:05.1]} 79... Kd4 {[%clk 0:00:06.8]} 80.
Qb6+ {[%clk 0:00:04.7]} 80... Kd5 {[%clk 0:00:07.3]} 81. Qb7+ {[%clk 0:00:04.5]}
81... Kd6 {[%clk 0:00:07.8]} 82. Qb6+ {[%clk 0:00:04.9]} 82... Ke5 {[%clk
0:00:07.5]} 83. Qc5+ {[%clk 0:00:05.1]} 83... Ke6 {[%clk 0:00:08.1]} 84. Qc6+
{[%clk 0:00:05.5]} 84... Ke7 {[%clk 0:00:08.7]} 85. Qc7+ {[%clk 0:00:05.7]}
85... Ke6 {[%clk 0:00:08.2]} 86. Qc6+ {[%clk 0:00:06.3]} 86... Kf5 {[%clk
0:00:08.1]} 87. Qd5+ {[%clk 0:00:06.7]} 87... Kf6 {[%clk 0:00:08.7]} 88. Qd6+
{[%clk 0:00:07.3]} 88... Kg7 {[%clk 0:00:09.1]} 89. Qe7+ {[%clk 0:00:07.6]}
89... Kg8 {[%clk 0:00:09.4]} 90. Qe8+ {[%clk 0:00:08]} 90... Kg7 {[%clk
0:00:10]} 91. Qe7+ {[%clk 0:00:08.7]} 91... Kg8 {[%clk 0:00:10.5]} 92. Qe8+
{[%clk 0:00:09.1]} 92... Kh7 {[%clk 0:00:11]} 93. Qf7+ {[%clk 0:00:09.3]} 93...
Kh8 {[%clk 0:00:11.6]} 94. Qf8+ {[%clk 0:00:09.5]} 94... Kh7 {[%clk 0:00:12.3]}
95. Qf7+ {[%clk 0:00:10.2]} 95... Kh8 {[%clk 0:00:12.9]} 96. Qf8+ {[%clk
0:00:10.7]} 96... Kh7 {[%clk 0:00:13.6]} 97. Qf7+ {[%clk 0:00:11.4]} 1/2-1/2